[Event "Titled Tuesday Blitz April 18 Early 2023"]
[White "Bacallao Alonso, Yusnel"]
[Black "Svane, Rasmus"]
[WhiteFideId "3507416"]
[BlackFideId "4657101"]
[WhiteElo "2561"]
[BlackElo "2597"]
[Result "1/2-1/2"]
[Round "10"]
[TimeControl "180+2"]
[Date "2023.04.18"]
[WhiteClock "0:00:05"]
[BlackClock "0:00:06"]

1. d4 {[%clk 0:03:00]}  Nf6 {[%clk 0:03:00]} 2. Nf3 {[%clk 0:03:00]}  d5 {[%clk 0:03:00]} 3. c4 {[%clk 0:03:00]}  e6 {[%clk 0:03:00]} 4. Nc3 {[%clk 0:02:59]}  a6 {[%clk 0:02:59]} 5. cxd5 {[%clk 0:02:57]}  exd5 {[%clk 0:03:00]} 6. Bg5 {[%clk 0:02:58]}  Be6 {[%clk 0:03:00]} 7. Qb3 {[%clk 0:02:58]}  Nbd7 {[%clk 0:02:58]} 8. e3 {[%clk 0:02:58]}  Bd6 {[%clk 0:02:56]} 9. Bd3 {[%clk 0:02:55]}  Qb8 {[%clk 0:02:50]} 10. Bf4 {[%clk 0:02:32]}  Bxf4 {[%clk 0:02:49]} 11. exf4 {[%clk 0:02:33]}  c5 {[%clk 0:02:50]} 12. f5 {[%clk 0:02:28]}  c4 {[%clk 0:02:44]} 13. Qa3 {[%clk 0:02:27]}  cxd3 {[%clk 0:02:39]} 14. fxe6 {[%clk 0:02:27]}  fxe6 {[%clk 0:02:40]} 15. O-O {[%clk 0:02:27]}  Qd8 {[%clk 0:02:31]} 16. Rfe1 {[%clk 0:01:30]}  Qe7 {[%clk 0:02:30]} 17. Qb3 {[%clk 0:01:30]}  b5 {[%clk 0:01:30]} 18. Rad1 {[%clk 0:01:26]}  O-O {[%clk 0:01:23]} 19. Rxd3 {[%clk 0:01:22]}  Qd6 {[%clk 0:01:21]} 20. Rde3 {[%clk 0:01:20]}  Rfe8 {[%clk 0:01:21]} 21. h3 {[%clk 0:01:20]}  h6 {[%clk 0:01:21]} 22. Qc2 {[%clk 0:01:17]}  Rac8 {[%clk 0:01:18]} 23. Qg6 {[%clk 0:01:10]}  Nf8 {[%clk 0:01:18]} 24. Qd3 {[%clk 0:01:09]}  Re7 {[%clk 0:01:10]} 25. Ne5 {[%clk 0:01:08]}  N6d7 {[%clk 0:01:05]} 26. Ng4 {[%clk 0:01:01]}  Rf7 {[%clk 0:01:03]} 27. Rg3 {[%clk 0:00:56]}  Kh8 {[%clk 0:01:03]} 28. Qe3 {[%clk 0:00:55]}  Qf4 {[%clk 0:01:01]} 29. Qd3 {[%clk 0:00:49]}  Qd6 {[%clk 0:01:02]} 30. a3 {[%clk 0:00:47]}  Rc4 {[%clk 0:01:01]} 31. Ree3 {[%clk 0:00:41]}  b4 {[%clk 0:00:55]} 32. axb4 {[%clk 0:00:38]}  Qxb4 {[%clk 0:00:56]} 33. Ref3 {[%clk 0:00:33]}  Rxf3 {[%clk 0:00:51]} 34. Qxf3 {[%clk 0:00:33]}  Qe7 {[%clk 0:00:36]} 35. Qe3 {[%clk 0:00:29]}  Qg5 {[%clk 0:00:33]} 36. f4 {[%clk 0:00:29]}  Qf5 {[%clk 0:00:31]} 37. Ne5 {[%clk 0:00:20]}  Nxe5 {[%clk 0:00:22]} 38. fxe5 {[%clk 0:00:21]}  Ng6 {[%clk 0:00:23]} 39. Rf3 {[%clk 0:00:21]}  Qg5 {[%clk 0:00:23]} 40. Qf2 {[%clk 0:00:18]}  Kh7 {[%clk 0:00:22]} 41. Kh2 {[%clk 0:00:17]}  Qh4 {[%clk 0:00:21]} 42. Rg3 {[%clk 0:00:10]}  Rxd4 {[%clk 0:00:13]} 43. Qf7 {[%clk 0:00:06]}  Qh5 {[%clk 0:00:09]} 44. Qxe6 {[%clk 0:00:06]}  Rd2 {[%clk 0:00:05]} 45. Nxd5 {[%clk 0:00:05]}  Re2 {[%clk 0:00:03]} 46. Nf6+ {[%clk 0:00:05]}  gxf6 {[%clk 0:00:02]} 47. Qf7+ {[%clk 0:00:05]}  Kh8 {[%clk 0:00:03]} 48. Qxf6+ {[%clk 0:00:04]}  Kh7 {[%clk 0:00:02]} 49. Qf7+ {[%clk 0:00:04]}  Kh8 {[%clk 0:00:03]} 50. Qxg6 {[%clk 0:00:04]}  Qxg6 {[%clk 0:00:03]} 51. Rxg6 {[%clk 0:00:05]}  Rxb2 {[%clk 0:00:03]} 52. Rxh6+ {[%clk 0:00:05]}  Kg7 {[%clk 0:00:04]} 53. Rxa6 {[%clk 0:00:06]}  Re2 {[%clk 0:00:04]} 54. e6 {[%clk 0:00:06]}  Kf6 {[%clk 0:00:04]} 55. h4 {[%clk 0:00:06]}  Kf5 {[%clk 0:00:05]} 56. Kh3 {[%clk 0:00:06]}  Re3+ {[%clk 0:00:05]} 57. g3 {[%clk 0:00:06]}  Re4 {[%clk 0:00:05]} 58. Ra5+ {[%clk 0:00:06]}  Kxe6 {[%clk 0:00:05]} 59. Rg5 {[%clk 0:00:07]}  Kf6 {[%clk 0:00:05]} 60. Rg4 {[%clk 0:00:08]}  Re3 {[%clk 0:00:05]} 61. Rf4+ {[%clk 0:00:08]}  Kg6 {[%clk 0:00:06]} 62. Kg4 {[%clk 0:00:09]}  Re5 {[%clk 0:00:06]} 63. h5+ {[%clk 0:00:07]}  Kg7 {[%clk 0:00:04]} 64. Rf5 {[%clk 0:00:07]}  Re3 {[%clk 0:00:04]} 65. Kh4 {[%clk 0:00:07]}  Kh6 {[%clk 0:00:04]} 66. g4 {[%clk 0:00:05]}  Re4 {[%clk 0:00:04]} 67. Rf6+ {[%clk 0:00:05]}  Kg7 {[%clk 0:00:05]} 68. Kg5 {[%clk 0:00:05]}  Rxg4+ {[%clk 0:00:04]} 69. Kxg4 {[%clk 0:00:04]}  Kxf6 {[%clk 0:00:05]} 70. h6 {[%clk 0:00:05]}  Kg6 {[%clk 0:00:05]} 71. h7 {[%clk 0:00:05]}  Kxh7 {[%clk 0:00:06]} 1/2-1/2


[Site "https://www.chess.com"]

[Event "Titled Tuesday Blitz April 18 Early 2023"]
[White "Kramnik, Vladimir"]
[Black "Kushko, Dmitriy"]
[WhiteFideId "4101588"]
[BlackFideId "14162261"]
[WhiteElo "2712"]
[BlackElo "2230"]
[Result "1-0"]
[Round "10"]
[TimeControl "180+2"]
[Date "2023.04.18"]
[WhiteClock "0:02:03"]
[BlackClock "0:00:45"]

1. e4 {[%clk 0:03:00]}  g6 {[%clk 0:03:00]} 2. d4 {[%clk 0:02:59]}  Bg7 {[%clk 0:03:00]} 3. Nf3 {[%clk 0:03:00]}  d6 {[%clk 0:03:00]} 4. Be2 {[%clk 0:02:58]}  Nf6 {[%clk 0:02:59]} 5. Nc3 {[%clk 0:02:58]}  O-O {[%clk 0:02:59]} 6. O-O {[%clk 0:02:58]}  a6 {[%clk 0:03:00]} 7. h3 {[%clk 0:02:58]}  Nc6 {[%clk 0:02:59]} 8. Bf4 {[%clk 0:02:58]}  b5 {[%clk 0:02:12]} 9. e5 {[%clk 0:02:56]}  Nd7 {[%clk 0:02:08]} 10. Qc1 {[%clk 0:02:56]}  dxe5 {[%clk 0:02:04]} 11. dxe5 {[%clk 0:02:55]}  Ndxe5 {[%clk 0:01:48]} 12. Rd1 {[%clk 0:02:51]}  Bd7 {[%clk 0:01:49]} 13. Nxe5 {[%clk 0:02:48]}  Nxe5 {[%clk 0:01:34]} 14. Qe3 {[%clk 0:02:28]}  Nc6 {[%clk 0:01:27]} 15. Bf3 {[%clk 0:02:22]}  Qc8 {[%clk 0:01:12]} 16. Qc5 {[%clk 0:02:08]}  e5 {[%clk 0:01:01]} 17. Rxd7 {[%clk 0:02:07]}  Qxd7 {[%clk 0:00:57]} 18. Bxc6 {[%clk 0:02:06]}  Qd6 {[%clk 0:00:45]} 19. Qxd6 {[%clk 0:02:04]}  cxd6 {[%clk 0:00:45]} 20. Bxa8 {[%clk 0:02:03]} 1-0


[Site "https://www.chess.com"]

[Event "Titled Tuesday Blitz April 18 Early 2023"]
[White "Csonka, Balazs"]
[Black "Paravyan, David"]
[WhiteFideId "742910"]
[BlackFideId "4194985"]
[WhiteElo "2404"]
[BlackElo "2563"]
[Result "1/2-1/2"]
[Round "10"]
[TimeControl "180+2"]
[Date "2023.04.18"]
[WhiteClock "0:00:03"]
[BlackClock "0:00:08"]

1. d4 {[%clk 0:03:00]}  Nf6 {[%clk 0:02:59]} 2. c4 {[%clk 0:03:00]}  g6 {[%clk 0:02:59]} 3. Nc3 {[%clk 0:03:00]}  d5 {[%clk 0:02:59]} 4. cxd5 {[%clk 0:03:01]}  Nxd5 {[%clk 0:02:59]} 5. e4 {[%clk 0:03:01]}  Nxc3 {[%clk 0:03:00]} 6. bxc3 {[%clk 0:03:01]}  Bg7 {[%clk 0:03:01]} 7. Nf3 {[%clk 0:03:02]}  c5 {[%clk 0:03:01]} 8. Bb5+ {[%clk 0:03:02]}  Nc6 {[%clk 0:03:01]} 9. O-O {[%clk 0:03:01]}  O-O {[%clk 0:02:58]} 10. Be3 {[%clk 0:02:59]}  Qa5 {[%clk 0:02:58]} 11. Qa4 {[%clk 0:02:55]}  Qxa4 {[%clk 0:02:28]} 12. Bxa4 {[%clk 0:02:56]}  cxd4 {[%clk 0:02:27]} 13. cxd4 {[%clk 0:02:56]}  Rd8 {[%clk 0:02:23]} 14. Bxc6 {[%clk 0:02:43]}  bxc6 {[%clk 0:02:24]} 15. Rfc1 {[%clk 0:02:39]}  Rb8 {[%clk 0:02:23]} 16. Ne5 {[%clk 0:02:19]}  Bb7 {[%clk 0:02:23]} 17. f3 {[%clk 0:02:10]}  f5 {[%clk 0:02:09]} 18. exf5 {[%clk 0:01:51]}  gxf5 {[%clk 0:02:10]} 19. Rab1 {[%clk 0:01:48]}  Ba8 {[%clk 0:02:08]} 20. Rxb8 {[%clk 0:00:32]}  Rxb8 {[%clk 0:02:08]} 21. Rc2 {[%clk 0:00:33]}  e6 {[%clk 0:02:04]} 22. Nxc6 {[%clk 0:00:25]}  Rb1+ {[%clk 0:01:45]} 23. Kf2 {[%clk 0:00:25]}  Bf6 {[%clk 0:01:40]} 24. Ne5 {[%clk 0:00:18]}  Bb7 {[%clk 0:01:40]} 25. Rc7 {[%clk 0:00:16]}  Bh4+ {[%clk 0:01:38]} 26. g3 {[%clk 0:00:16]}  Rb2+ {[%clk 0:01:37]} 27. Ke1 {[%clk 0:00:15]}  Bf6 {[%clk 0:01:37]} 28. Bh6 {[%clk 0:00:11]}  Rxh2 {[%clk 0:01:13]} 29. Rxb7 {[%clk 0:00:11]}  Rxh6 {[%clk 0:01:14]} 30. Rxa7 {[%clk 0:00:11]}  Rh1+ {[%clk 0:01:03]} 31. Kf2 {[%clk 0:00:10]}  Rd1 {[%clk 0:00:46]} 32. Ke3 {[%clk 0:00:08]}  Re1+ {[%clk 0:00:41]} 33. Kf2 {[%clk 0:00:08]}  Rd1 {[%clk 0:00:41]} 34. Ra8+ {[%clk 0:00:08]}  Kg7 {[%clk 0:00:41]} 35. Ra7+ {[%clk 0:00:07]}  Kh6 {[%clk 0:00:41]} 36. Ra6 {[%clk 0:00:07]}  Rxd4 {[%clk 0:00:36]} 37. Rxe6 {[%clk 0:00:07]}  Kg7 {[%clk 0:00:36]} 38. f4 {[%clk 0:00:07]}  Rd2+ {[%clk 0:00:36]} 39. Kf3 {[%clk 0:00:07]}  Rxa2 {[%clk 0:00:36]} 40. Rc6 {[%clk 0:00:07]}  Ra3+ {[%clk 0:00:37]} 41. Kg2 {[%clk 0:00:07]}  h5 {[%clk 0:00:37]} 42. Rc7+ {[%clk 0:00:05]}  Kg8 {[%clk 0:00:38]} 43. Rc8+ {[%clk 0:00:05]}  Kh7 {[%clk 0:00:38]} 44. Rc7+ {[%clk 0:00:05]}  Kh6 {[%clk 0:00:32]} 45. Rc6 {[%clk 0:00:05]}  Kg7 {[%clk 0:00:31]} 46. Rc7+ {[%clk 0:00:05]}  Kg8 {[%clk 0:00:30]} 47. Rc8+ {[%clk 0:00:04]}  Kh7 {[%clk 0:00:31]} 48. Rc7+ {[%clk 0:00:05]}  Bg7 {[%clk 0:00:31]} 49. Rf7 {[%clk 0:00:04]}  h4 {[%clk 0:00:27]} 50. gxh4 {[%clk 0:00:05]}  Ra2+ {[%clk 0:00:27]} 51. Kf3 {[%clk 0:00:05]}  Ra3+ {[%clk 0:00:28]} 52. Kg2 {[%clk 0:00:05]}  Ra2+ {[%clk 0:00:28]} 53. Kf3 {[%clk 0:00:05]}  Ra3+ {[%clk 0:00:28]} 54. Ke2 {[%clk 0:00:05]}  Ra2+ {[%clk 0:00:25]} 55. Kd3 {[%clk 0:00:05]}  Ra3+ {[%clk 0:00:23]} 56. Kc4 {[%clk 0:00:05]}  Ra4+ {[%clk 0:00:23]} 57. Kd5 {[%clk 0:00:05]}  Rxf4 {[%clk 0:00:24]} 58. Ke6 {[%clk 0:00:04]}  Rxh4 {[%clk 0:00:23]} 59. Rxf5 {[%clk 0:00:04]}  Kg8 {[%clk 0:00:22]} 60. Nc6 {[%clk 0:00:04]}  Re4+ {[%clk 0:00:21]} 61. Kd7 {[%clk 0:00:04]}  Bf8 {[%clk 0:00:19]} 62. Rd5 {[%clk 0:00:03]}  Re1 {[%clk 0:00:19]} 63. Rd4 {[%clk 0:00:04]}  Bh6 {[%clk 0:00:18]} 64. Ne7+ {[%clk 0:00:02]}  Kf7 {[%clk 0:00:18]} 65. Nd5 {[%clk 0:00:02]}  Bg5 {[%clk 0:00:18]} 66. Rd3 {[%clk 0:00:02]}  Rf1 {[%clk 0:00:18]} 67. Nc7 {[%clk 0:00:02]}  Bf6 {[%clk 0:00:14]} 68. Rd5 {[%clk 0:00:02]}  Rh1 {[%clk 0:00:14]} 69. Ne8 {[%clk 0:00:02]}  Bh4 {[%clk 0:00:11]} 70. Nd6+ {[%clk 0:00:03]}  Kg6 {[%clk 0:00:12]} 71. Rd3 {[%clk 0:00:02]}  Ra1 {[%clk 0:00:11]} 72. Rd5 {[%clk 0:00:03]}  Ra7+ {[%clk 0:00:10]} 73. Kc6 {[%clk 0:00:03]}  Be7 {[%clk 0:00:10]} 74. Nb7 {[%clk 0:00:02]}  Kf7 {[%clk 0:00:09]} 75. Rb5 {[%clk 0:00:02]}  Ra1 {[%clk 0:00:09]} 76. Ra5 {[%clk 0:00:02]}  Rc1+ {[%clk 0:00:10]} 77. Nc5 {[%clk 0:00:02]}  Kf6 {[%clk 0:00:09]} 78. Rb5 {[%clk 0:00:02]}  Ke5 {[%clk 0:00:09]} 79. Kb6 {[%clk 0:00:02]}  Bd8+ {[%clk 0:00:06]} 80. Kb7 {[%clk 0:00:02]}  Kd6 {[%clk 0:00:05]} 81. Nb3 {[%clk 0:00:01]}  Rc7+ {[%clk 0:00:05]} 82. Ka6 {[%clk 0:00:02]}  Rh7 {[%clk 0:00:05]} 83. Na5 {[%clk 0:00:01]}  Bc7 {[%clk 0:00:04]} 84. Nb7+ {[%clk 0:00:02]}  Kd7 {[%clk 0:00:03]} 85. Nc5+ {[%clk 0:00:02]}  Kc6 {[%clk 0:00:04]} 86. Nb3 {[%clk 0:00:02]}  Rh4 {[%clk 0:00:02]} 87. Rc5+ {[%clk 0:00:02]}  Kd7 {[%clk 0:00:02]} 88. Kb5 {[%clk 0:00:02]}  Bd6 {[%clk 0:00:03]} 89. Rc4 {[%clk 0:00:02]}  Rh5+ {[%clk 0:00:03]} 90. Ka4 {[%clk 0:00:02]}  Rh1 {[%clk 0:00:03]} 91. Nc5+ {[%clk 0:00:02]}  Kc6 {[%clk 0:00:04]} 92. Ne4+ {[%clk 0:00:02]}  Kd5 {[%clk 0:00:04]} 93. Nxd6 {[%clk 0:00:03]}  Ra1+ {[%clk 0:00:04]} 94. Kb3 {[%clk 0:00:03]}  Rb1+ {[%clk 0:00:05]} 95. Kc2 {[%clk 0:00:03]}  Rb6 {[%clk 0:00:06]} 96. Kc3 {[%clk 0:00:02]}  Rxd6 {[%clk 0:00:06]} 97. Rd4+ {[%clk 0:00:02]}  Ke6 {[%clk 0:00:07]} 98. Rxd6+ {[%clk 0:00:03]}  Kxd6 {[%clk 0:00:08]} 1/2-1/2


[Site "https://www.chess.com"]

[Event "Titled Tuesday Blitz April 18 Early 2023"]
[White "Aradhya, Garg"]
[Black "Durarbayli, Vasif"]
[WhiteFideId "25006746"]
[BlackFideId "13402935"]
[WhiteElo "2263"]
[BlackElo "2551"]
[Result "0-1"]
[Round "10"]
[TimeControl "180+2"]
[Date "2023.04.18"]
[WhiteClock "0:00:42"]
[BlackClock "0:00:07"]

1. d4 {[%clk 0:02:57]}  Nf6 {[%clk 0:02:59]} 2. Nf3 {[%clk 0:02:56]}  e6 {[%clk 0:03:00]} 3. c3 {[%clk 0:02:55]}  d5 {[%clk 0:02:59]} 4. Bf4 {[%clk 0:02:55]}  c5 {[%clk 0:03:00]} 5. e3 {[%clk 0:02:55]}  Nc6 {[%clk 0:03:00]} 6. Nbd2 {[%clk 0:02:55]}  Nh5 {[%clk 0:02:58]} 7. Be5 {[%clk 0:02:47]}  f6 {[%clk 0:02:57]} 8. Bg3 {[%clk 0:02:46]}  Qb6 {[%clk 0:02:57]} 9. Rb1 {[%clk 0:02:44]}  cxd4 {[%clk 0:02:54]} 10. exd4 {[%clk 0:02:44]}  Bd7 {[%clk 0:02:50]} 11. Bd3 {[%clk 0:02:43]}  Be7 {[%clk 0:02:45]} 12. Ne5 {[%clk 0:02:42]}  Nxe5 {[%clk 0:02:43]} 13. Bxe5 {[%clk 0:02:31]}  g6 {[%clk 0:02:27]} 14. Bg3 {[%clk 0:02:31]}  O-O-O {[%clk 0:02:23]} 15. O-O {[%clk 0:02:29]}  Nxg3 {[%clk 0:02:20]} 16. hxg3 {[%clk 0:02:29]}  e5 {[%clk 0:02:18]} 17. b4 {[%clk 0:02:24]}  Kb8 {[%clk 0:01:51]} 18. Re1 {[%clk 0:02:20]}  e4 {[%clk 0:01:42]} 19. Nb3 {[%clk 0:02:18]}  h5 {[%clk 0:01:40]} 20. Nc5 {[%clk 0:02:17]}  Bc8 {[%clk 0:01:39]} 21. a4 {[%clk 0:02:16]}  h4 {[%clk 0:01:37]} 22. gxh4 {[%clk 0:02:09]}  Rxh4 {[%clk 0:01:33]} 23. g3 {[%clk 0:02:09]}  Rh7 {[%clk 0:01:20]} 24. Bf1 {[%clk 0:02:09]}  f5 {[%clk 0:01:18]} 25. Qd2 {[%clk 0:01:52]}  g5 {[%clk 0:01:16]} 26. Bg2 {[%clk 0:01:44]}  Qh6 {[%clk 0:01:14]} 27. f4 {[%clk 0:01:23]}  Bd6 {[%clk 0:00:58]} 28. Kf2 {[%clk 0:01:18]}  gxf4 {[%clk 0:00:58]} 29. Rh1 {[%clk 0:01:18]}  e3+ {[%clk 0:00:53]} 30. Ke2 {[%clk 0:01:17]}  Qxh1 {[%clk 0:00:47]} 31. Rxh1 {[%clk 0:01:16]}  Rxh1 {[%clk 0:00:39]} 32. Qa2 {[%clk 0:01:15]}  Bxc5 {[%clk 0:00:21]} 33. Bxh1 {[%clk 0:01:13]}  Bd6 {[%clk 0:00:11]} 34. gxf4 {[%clk 0:01:07]}  Bxf4 {[%clk 0:00:12]} 35. Bxd5 {[%clk 0:01:07]}  Rh8 {[%clk 0:00:10]} 36. Kf3 {[%clk 0:01:00]}  Rh2 {[%clk 0:00:05]} 37. Qe2 {[%clk 0:00:42]}  Rxe2 {[%clk 0:00:05]} 38. Kxe2 {[%clk 0:00:43]}  Bg5 {[%clk 0:00:06]} 39. Kf3 {[%clk 0:00:43]}  f4 {[%clk 0:00:06]} 40. Be4 {[%clk 0:00:43]}  Bd7 {[%clk 0:00:07]} 41. a5 {[%clk 0:00:42]}  Be8 {[%clk 0:00:07]} 42. Ke2 {[%clk 0:00:41]}  Bb5+ {[%clk 0:00:06]} 43. Kf3 {[%clk 0:00:41]}  e2 {[%clk 0:00:06]} 44. Kf2 {[%clk 0:00:42]}  Bh4+ {[%clk 0:00:07]} 0-1


[Site "https://www.chess.com"]

[Event "Titled Tuesday Blitz April 18 Early 2023"]
[White "Srihari L R"]
[Black "Anton Guijarro, David"]
[WhiteFideId "46617116"]
[BlackFideId "2285525"]
[WhiteElo "2334"]
[BlackElo "2618"]
[Result "1-0"]
[Round "10"]
[TimeControl "180+2"]
[Date "2023.04.18"]
[WhiteClock "0:00:19"]
[BlackClock "0:00:19"]

1. Nf3 {[%clk 0:02:58]}  b6 {[%clk 0:02:56]} 2. g3 {[%clk 0:02:58]}  Bb7 {[%clk 0:02:57]} 3. Bg2 {[%clk 0:02:58]}  g6 {[%clk 0:02:56]} 4. O-O {[%clk 0:02:59]}  Bg7 {[%clk 0:02:56]} 5. c4 {[%clk 0:02:59]}  c5 {[%clk 0:02:57]} 6. Nc3 {[%clk 0:02:59]}  Nh6 {[%clk 0:02:56]} 7. d4 {[%clk 0:02:59]}  cxd4 {[%clk 0:02:56]} 8. Nxd4 {[%clk 0:02:59]}  Bxg2 {[%clk 0:02:57]} 9. Kxg2 {[%clk 0:03:00]}  Nc6 {[%clk 0:02:57]} 10. Nxc6 {[%clk 0:02:51]}  dxc6 {[%clk 0:02:58]} 11. Qa4 {[%clk 0:02:51]}  Qc8 {[%clk 0:02:52]} 12. Bg5 {[%clk 0:02:44]}  Nf5 {[%clk 0:02:50]} 13. Rac1 {[%clk 0:02:43]}  h6 {[%clk 0:02:50]} 14. Bd2 {[%clk 0:02:42]}  h5 {[%clk 0:02:48]} 15. h4 {[%clk 0:02:42]}  O-O {[%clk 0:02:35]} 16. Rfd1 {[%clk 0:02:41]}  Nxh4+ {[%clk 0:02:23]} 17. gxh4 {[%clk 0:02:36]}  Qg4+ {[%clk 0:02:23]} 18. Kf1 {[%clk 0:02:37]}  Qxh4 {[%clk 0:02:17]} 19. Qxc6 {[%clk 0:02:33]}  Rac8 {[%clk 0:02:17]} 20. Qf3 {[%clk 0:02:26]}  Rxc4 {[%clk 0:02:15]} 21. b3 {[%clk 0:02:19]}  Rg4 {[%clk 0:02:01]} 22. e3 {[%clk 0:02:14]}  e5 {[%clk 0:01:57]} 23. Ke2 {[%clk 0:01:55]}  e4 {[%clk 0:01:53]} 24. Qh1 {[%clk 0:01:56]}  Qe7 {[%clk 0:01:45]} 25. Rg1 {[%clk 0:01:53]}  Rxg1 {[%clk 0:01:27]} 26. Rxg1 {[%clk 0:01:52]}  Rd8 {[%clk 0:01:21]} 27. Qxe4 {[%clk 0:01:24]}  Rxd2+ {[%clk 0:01:20]} 28. Kxd2 {[%clk 0:01:25]}  Bxc3+ {[%clk 0:01:21]} 29. Kd3 {[%clk 0:01:26]}  Qf6 {[%clk 0:01:22]} 30. f4 {[%clk 0:01:20]}  Kg7 {[%clk 0:00:56]} 31. Rc1 {[%clk 0:01:17]}  Bb2 {[%clk 0:00:55]} 32. Rc8 {[%clk 0:01:00]}  Ba3 {[%clk 0:00:40]} 33. Qd4 {[%clk 0:00:43]}  Qxd4+ {[%clk 0:00:31]} 34. Kxd4 {[%clk 0:00:43]}  Bc5+ {[%clk 0:00:22]} 35. Ke4 {[%clk 0:00:43]}  a5 {[%clk 0:00:21]} 36. Kf3 {[%clk 0:00:43]}  f5 {[%clk 0:00:22]} 37. e4 {[%clk 0:00:35]}  fxe4+ {[%clk 0:00:22]} 38. Kxe4 {[%clk 0:00:36]}  Kf6 {[%clk 0:00:20]} 39. Rc6+ {[%clk 0:00:36]}  Kf7 {[%clk 0:00:20]} 40. f5 {[%clk 0:00:36]}  g5 {[%clk 0:00:21]} 41. Ke5 {[%clk 0:00:34]}  h4 {[%clk 0:00:21]} 42. Rc7+ {[%clk 0:00:35]}  Kg8 {[%clk 0:00:21]} 43. Kf6 {[%clk 0:00:20]}  h3 {[%clk 0:00:20]} 44. Kg6 {[%clk 0:00:18]}  h2 {[%clk 0:00:19]} 45. Rc8+ {[%clk 0:00:19]}  Bf8 {[%clk 0:00:19]} 46. f6 {[%clk 0:00:19]} 1-0


[Site "https://www.chess.com"]

[Event "Titled Tuesday Blitz April 18 Early 2023"]
[White "Shuvalova, Polina"]
[Black "Pichot, Alan"]
[WhiteFideId "24171760"]
[BlackFideId "110973"]
[WhiteElo "2281"]
[BlackElo "2573"]
[Result "0-1"]
[Round "10"]
[TimeControl "180+2"]
[Date "2023.04.18"]
[WhiteClock "0:00:02"]
[BlackClock "0:00:05"]

1. e4 {[%clk 0:03:00]}  c5 {[%clk 0:02:57]} 2. Nf3 {[%clk 0:03:00]}  d6 {[%clk 0:02:57]} 3. Bb5+ {[%clk 0:02:56]}  Nd7 {[%clk 0:02:57]} 4. O-O {[%clk 0:02:49]}  a6 {[%clk 0:02:55]} 5. Bxd7+ {[%clk 0:02:49]}  Bxd7 {[%clk 0:02:55]} 6. d4 {[%clk 0:02:50]}  cxd4 {[%clk 0:02:55]} 7. Qxd4 {[%clk 0:02:50]}  e5 {[%clk 0:02:56]} 8. Qd3 {[%clk 0:02:47]}  h6 {[%clk 0:02:56]} 9. c4 {[%clk 0:02:47]}  Nf6 {[%clk 0:02:57]} 10. Nc3 {[%clk 0:02:47]}  Be7 {[%clk 0:02:57]} 11. Be3 {[%clk 0:02:45]}  O-O {[%clk 0:02:57]} 12. h3 {[%clk 0:02:44]}  b5 {[%clk 0:02:54]} 13. Nd2 {[%clk 0:02:39]}  Qb8 {[%clk 0:02:45]} 14. Nd5 {[%clk 0:02:30]}  Nxd5 {[%clk 0:02:43]} 15. cxd5 {[%clk 0:02:29]}  f5 {[%clk 0:02:36]} 16. f3 {[%clk 0:02:26]}  Qb7 {[%clk 0:02:33]} 17. Rac1 {[%clk 0:02:23]}  Rac8 {[%clk 0:02:33]} 18. Nb3 {[%clk 0:02:19]}  Bd8 {[%clk 0:02:27]} 19. Rxc8 {[%clk 0:02:16]}  Qxc8 {[%clk 0:02:28]} 20. Rc1 {[%clk 0:02:15]}  Qb7 {[%clk 0:02:29]} 21. Kh2 {[%clk 0:02:06]}  fxe4 {[%clk 0:02:17]} 22. fxe4 {[%clk 0:02:05]}  Be8 {[%clk 0:02:17]} 23. Bd2 {[%clk 0:01:31]}  Bg6 {[%clk 0:02:02]} 24. Rc6 {[%clk 0:01:26]}  Qe7 {[%clk 0:02:02]} 25. Qe2 {[%clk 0:01:03]}  Qh4 {[%clk 0:01:57]} 26. Rxd6 {[%clk 0:01:01]}  Rf2 {[%clk 0:01:25]} 27. Rxd8+ {[%clk 0:00:59]}  Kh7 {[%clk 0:01:25]} 28. Qg4 {[%clk 0:00:24]}  Qxd8 {[%clk 0:01:17]} 29. Qg3 {[%clk 0:00:24]}  Qf6 {[%clk 0:01:11]} 30. Be3 {[%clk 0:00:22]}  Rxb2 {[%clk 0:01:07]} 31. Nc5 {[%clk 0:00:22]}  Rxa2 {[%clk 0:00:58]} 32. Qg4 {[%clk 0:00:22]}  Qf1 {[%clk 0:00:44]} 33. Ne6 {[%clk 0:00:20]}  Ra1 {[%clk 0:00:41]} 34. d6 {[%clk 0:00:12]}  Qh1+ {[%clk 0:00:41]} 35. Kg3 {[%clk 0:00:13]}  Qe1+ {[%clk 0:00:42]} 36. Kh2 {[%clk 0:00:10]}  Qh1+ {[%clk 0:00:21]} 37. Kg3 {[%clk 0:00:09]}  Ra2 {[%clk 0:00:22]} 38. Bf2 {[%clk 0:00:06]}  Ra3+ {[%clk 0:00:22]} 39. Kh4 {[%clk 0:00:07]}  Qc1 {[%clk 0:00:08]} 40. Nf8+ {[%clk 0:00:07]}  Kg8 {[%clk 0:00:09]} 41. Nxg6 {[%clk 0:00:07]}  Qd2 {[%clk 0:00:09]} 42. Qf5 {[%clk 0:00:04]}  Qxd6 {[%clk 0:00:06]} 43. Bg3 {[%clk 0:00:04]}  Qf6+ {[%clk 0:00:06]} 44. Qxf6 {[%clk 0:00:04]}  gxf6 {[%clk 0:00:07]} 45. Kg4 {[%clk 0:00:04]}  h5+ {[%clk 0:00:07]} 46. Kh4 {[%clk 0:00:03]}  Kf7 {[%clk 0:00:04]} 47. Nh8+ {[%clk 0:00:02]}  Kg7 {[%clk 0:00:05]} 0-1


[Site "https://www.chess.com"]

[Event "Titled Tuesday Blitz April 18 Early 2023"]
[White "Bharath Subramaniyam H"]
[Black "Toropov, Pavel"]
[WhiteFideId "46634827"]
[BlackFideId "24129178"]
[WhiteElo "2395"]
[BlackElo "2182"]
[Result "1-0"]
[Round "10"]
[TimeControl "180+2"]
[Date "2023.04.18"]
[WhiteClock "0:01:51"]
[BlackClock "0:00:02"]

1. c4 {[%clk 0:02:57]}  c6 {[%clk 0:02:59]} 2. d4 {[%clk 0:02:57]}  d5 {[%clk 0:02:59]} 3. cxd5 {[%clk 0:02:57]}  cxd5 {[%clk 0:03:00]} 4. Nf3 {[%clk 0:02:58]}  Nf6 {[%clk 0:03:01]} 5. Nc3 {[%clk 0:02:58]}  Nc6 {[%clk 0:03:01]} 6. Bf4 {[%clk 0:02:59]}  a6 {[%clk 0:03:02]} 7. e3 {[%clk 0:02:58]}  Bf5 {[%clk 0:03:02]} 8. Be2 {[%clk 0:02:57]}  Rc8 {[%clk 0:03:01]} 9. O-O {[%clk 0:02:57]}  e6 {[%clk 0:03:01]} 10. Qb3 {[%clk 0:02:54]}  Bb4 {[%clk 0:01:33]} 11. Ne5 {[%clk 0:02:52]}  Qe7 {[%clk 0:01:27]} 12. Rac1 {[%clk 0:02:20]}  O-O {[%clk 0:01:24]} 13. a3 {[%clk 0:02:15]}  Ba5 {[%clk 0:01:03]} 14. Na4 {[%clk 0:02:07]}  Ne4 {[%clk 0:00:59]} 15. Nxc6 {[%clk 0:02:06]}  Rxc6 {[%clk 0:00:54]} 16. Rxc6 {[%clk 0:02:05]}  bxc6 {[%clk 0:00:55]} 17. Rc1 {[%clk 0:02:04]}  g5 {[%clk 0:00:06]} 18. Be5 {[%clk 0:01:58]}  f6 {[%clk 0:00:06]} 19. Bg3 {[%clk 0:01:59]}  Bg6 {[%clk 0:00:05]} 20. Nc5 {[%clk 0:01:53]}  Nxg3 {[%clk 0:00:02]} 21. hxg3 {[%clk 0:01:53]}  h5 {[%clk 0:00:02]} 22. Nxa6 {[%clk 0:01:51]} 1-0


[Site "https://www.chess.com"]